bitfinex/quotes_BTCUSD_20211001
["timestamp","ask_amount","ask_price","bid_price","bid_amount"]
[1633114300754,5.3869,47715.0,47702.0,0.00126932]
[1633114300955,0.5,47713.0,47705.0,0.11380056]
[1633114301153,0.209565,47714.0,47709.0,0.00125958]
[1633114301356,0.209543,47712.0,47709.0,0.00125958]
[1633114301553,0.209543,47712.0,47710.0,0.00024264]
[1633114301752,2.34783919,47711.0,47710.0,0.01770557]
[1633114301954,2.56437153,47711.0,47710.0,0.01770557]
[1633114302354,0.46437153,47711.0,47710.0,0.01750557]
[1633114302552,0.46384107,47711.0,47710.0,0.01750557]
[1633114302754,0.24759607,47711.0,47710.0,0.01750557]
[1633114303753,0.24788341,47711.0,47710.0,0.01750557]
[1633114304153,0.24759607,47711.0,47710.0,0.01750557]
[1633114305156,0.24751797,47711.0,47710.0,0.01750557]
[1633114307162,0.26780278,47711.0,47710.0,0.01750557]
[1633114307360,0.26780278,47711.0,47708.0,2.52753846]
[1633114308161,0.26780278,47711.0,47708.0,2.63753846]
[1633114308359,0.314334,47710.0,47708.0,2.63753846]
[1633114308560,0.314334,47710.0,47708.0,2.63253846]
[1633114311665,0.314334,47710.0,47708.0,0.11]
[1633114311865,0.216245,47709.0,47708.0,0.11]
[1633114312928,0.216245,47709.0,47708.0,0.12761911]
[1633114314064,2.51653234,47709.0,47708.0,0.12261911]
[1633114314266,0.21653234,47709.0,47708.0,0.12261911]
[1633114316270,0.216245,47709.0,47708.0,0.12261911]
[1633114317067,0.21653234,47709.0,47708.0,0.12261911]
[1633114317469,0.216245,47709.0,47708.0,0.12261911]
[1633114317871,0.21653234,47709.0,47708.0,0.12261911]
[1633114318269,0.23680985,47709.0,47708.0,0.105]
[1633114319271,0.23652251,47709.0,47708.0,0.105]
[1633114321274,0.02027751,47709.0,47708.0,0.105]
[1633114323074,0.23652251,47709.0,47708.0,0.105]
[1633114323474,0.23782166,47709.0,47708.0,0.105]
[1633114323673,0.21783149,47709.0,47708.0,0.12261911]
[1633114323874,0.21754415,47709.0,47708.0,0.12261911]
[1633114324076,0.24751797,47711.0,47708.0,0.12261911]
[1633114326074,0.24780531,47711.0,47708.0,0.12261911]
[1633114326275,0.24751797,47711.0,47708.0,0.12261911]
[1633114328279,0.209565,47714.0,47708.0,0.12261911]
[1633114328482,2.07102007,47723.0,47716.0,0.27440696]
[1633114328679,0.216245,47721.0,47717.0,0.39616451]
[1633114328882,8.382e-05,47717.0,47712.0,0.0184]
[1633114329278,0.23646421,47714.0,47712.0,0.0184]
[1633114331277,0.23646421,47714.0,47713.0,0.001066]
[1633114332879,0.23646421,47714.0,47712.0,0.01783]
[1633114334481,0.02029445,47713.0,47712.0,0.01783]
[1633114338788,0.02149956,47713.0,47709.0,0.1]
[1633114338986,2.76562839,47710.0,47709.0,0.1]
[1633114339182,2.84918073,47710.0,47709.0,0.1]
[1633114339385,2.8482299,47710.0,47708.0,0.105]
[1633114339583,2.6674515,47709.0,47708.0,0.105]
[1633114339784,3.03942488,47709.0,47708.0,0.105]
[1633114339984,3.05970266,47709.0,47708.0,0.101365]
[1633114340184,3.05970266,47709.0,47708.0,0.11898411]
[1633114340987,2.56297866,47709.0,47708.0,0.11898411]
[1633114341385,2.91297866,47709.0,47708.0,0.11898411]
[1633114342584,2.91297866,47709.0,47708.0,0.1070857]
[1633114343586,2.91297866,47709.0,47691.0,0.44309698]
[1633114343587,0.62887404,47701.0,47691.0,0.44309698]
[1633114343799,0.62887404,47701.0,47689.0,0.1]
[1633114343800,0.20027703,47691.0,47689.0,0.1]
[1633114343989,2.91463299,47690.0,47689.0,0.1]
[1633114344387,2.5348068,47690.0,47689.0,0.10022767]
[1633114344589,2.80813783,47690.0,47689.0,0.00022767]
[1633114345390,2.83715454,47690.0,47689.0,0.00022767]
[1633114345790,2.83715454,47690.0,47689.0,0.00912302]
[1633114345989,0.38715454,47690.0,47689.0,0.00912302]
[1633114346596,0.11382351,47690.0,47689.0,0.00912302]
[1633114348391,0.11382351,47690.0,47689.0,0.11912302]
[1633114349248,0.11353617,47690.0,47689.0,0.11912302]
[1633114350851,0.11382351,47690.0,47689.0,0.11912302]
[1633114351049,0.11382351,47690.0,47689.0,0.11022767]
[1633114351249,0.08451946,47690.0,47689.0,0.11022767]
[1633114351850,0.0848068,47690.0,47689.0,0.11022767]
[1633114352050,0.08451946,47690.0,47689.0,0.11022767]
[1633114352651,0.0848068,47690.0,47689.0,0.11022767]
[1633114353051,0.08451946,47690.0,47689.0,0.11022767]
[1633114353852,0.0848068,47690.0,47689.0,0.11022767]
[1633114355457,0.209625,47701.0,47689.0,0.71635001]
[1633114355656,0.5,47707.0,47699.0,0.0012569]
[1633114355856,3.5706,47708.0,47700.0,0.0184]
[1633114356055,1.0734,47715.0,47705.0,0.00126886]
[1633114356257,0.419133,47710.0,47706.0,0.0184]
[1633114356456,0.083276,47709.0,47707.0,0.00024276]
[1633114356655,0.17677627,47710.0,47707.0,0.02744554]
[1633114356860,0.083276,47709.0,47707.0,0.02720278]
[1633114357056,0.00129867,47708.0,47707.0,0.02720278]
[1633114357458,0.00158601,47708.0,47707.0,0.02720278]
[1633114357655,0.00129867,47708.0,47707.0,0.02720278]
[1633114359261,0.17677627,47710.0,47707.0,0.02720278]
[1633114361455,0.49109727,47710.0,47707.0,0.02720278]
[1633114361855,0.209589,47711.0,47707.0,0.02720278]
[1633114362059,0.02908761,47709.0,47707.0,0.0184]
[1633114363661,0.02908761,47709.0,47708.0,0.2174189]
[1633114363859,0.02908761,47709.0,47708.0,0.38556166]
[1633114364058,0.02908761,47709.0,47708.0,0.3853189]
[1633114364261,0.02908761,47709.0,47708.0,0.78579519]
[1633114365060,0.314259,47722.0,47710.0,0.32730541]
[1633114365262,0.00126099,47723.0,47711.0,0.42317221]
[1633114365460,0.209506,47722.0,47711.0,0.42317221]
[1633114365661,0.22813476,47721.0,47711.0,0.42317221]
[1633114366261,0.23399509,47712.0,47711.0,0.42317221]
[1633114366459,0.314289,47716.0,47711.0,0.3718601]
[1633114366858,0.209526,47718.0,47711.0,0.3718601]
[1633114367467,0.23827655,47715.0,47711.0,0.3718601]
[1633114367666,0.23827655,47715.0,47712.0,0.02332628]
[1633114367867,0.23827655,47715.0,47713.0,0.0184]
[1633114368664,0.23827655,47715.0,47713.0,0.38130298]
[1633114371069,0.23827655,47715.0,47713.0,0.36290298]
[1633114371270,0.00123727,47714.0,47712.0,0.02332628]
[1633114372070,0.083276,47713.0,47712.0,0.02332628]
[1633114372668,0.09783482,47713.0,47711.0,0.11]
[1633114373268,0.083276,47713.0,47712.0,0.02333756]
[1633114374473,0.39884986,47713.0,47712.0,0.02333756]
[1633114374873,1.24884986,47713.0,47712.0,0.02333756]
[1633114375472,0.39884986,47713.0,47712.0,0.02333756]
[1633114375674,0.37453895,47713.0,47712.0,0.02333756]
[1633114376076,0.209557,47714.0,47712.0,0.35118601]
[1633114376278,0.00127271,47719.0,47712.0,0.35118601]
[1633114376477,0.50127271,47719.0,47713.0,0.0005301]
[1633114376676,0.5,47719.0,47712.0,0.35171611]
[1633114376878,0.5,47719.0,47712.0,0.69681443]
[1633114377077,0.2070256,47719.0,47712.0,0.71521443]
[1633114377476,0.2070256,47719.0,47712.0,0.36958601]
[1633114378277,0.01457004,47718.0,47712.0,0.34624845]
[1633114378677,0.2070256,47719.0,47713.0,0.02332402]
[1633114379076,0.209502,47722.0,47713.0,0.02332402]
[1633114379277,0.209502,47722.0,47714.0,0.0005301]
[1633114379475,0.058968,47721.0,47718.0,0.1]
[1633114379677,0.209502,47722.0,47719.0,0.37088303]
[1633114379881,0.00124635,47729.0,47721.0,0.00126206]
[1633114380079,1.062,47730.0,47722.0,0.0189301]
[1633114380286,2.9226,47731.0,47722.0,0.0189301]
[1633114380287,0.0002,47734.0,47725.0,1.05122381]
[1633114380479,0.0002,47734.0,47725.0,0.67325649]
[1633114380678,0.0002,47734.0,47725.0,0.98796888]
[1633114380877,0.0002,47734.0,47725.0,2.48123278]
[1633114381077,0.0002,47734.0,47725.0,2.60274502]
[1633114381279,0.0002,47734.0,47725.0,2.82594502]
[1633114381479,0.0002,47734.0,47725.0,2.27784675]
[1633114381879,0.0002,47734.0,47725.0,2.37784675]
[1633114382079,0.0002,47734.0,47725.0,1.96255409]
[1633114383880,0.08310804,47726.0,47725.0,1.96255409]
[1633114384279,0.08310804,47726.0,47725.0,1.98583074]
[1633114384479,0.07810804,47726.0,47725.0,1.98583074]
[1633114385881,0.07689282,47726.0,47725.0,1.98583074]
[1633114389180,0.07689282,47726.0,47725.0,2.07255409]
[1633114389781,0.07689282,47726.0,47725.0,2.09583074]
[1633114389782,0.06228554,47726.0,47725.0,2.09583074]
[1633114390787,0.06228554,47726.0,47725.0,2.09083074]
[1633114391580,0.06228554,47726.0,47725.0,1.65388216]
[1633114391982,0.06228554,47726.0,47725.0,1.64904032]
[1633114394384,0.06228554,47726.0,47725.0,1.10634631]
[1633114394583,0.07689296,47726.0,47725.0,1.10634631]
[1633114395183,0.06228554,47726.0,47725.0,1.12962296]
[1633114395585,0.06228554,47726.0,47725.0,1.23257662]
[1633114398189,0.06228554,47726.0,47725.0,1.00937662]
[1633114398389,0.06228554,47726.0,47725.0,0.90467947]
[1633114399991,0.07689302,47726.0,47725.0,0.88140282]
[1633114400792,0.06228554,47726.0,47725.0,0.90467947]
[1633114401392,0.06228554,47726.0,47725.0,0.58934546]
[1633114402596,0.06228554,47726.0,47725.0,0.59062804]
[1633114402796,0.06228554,47726.0,47725.0,0.59115814]
[1633114403858,0.06228554,47726.0,47725.0,0.59062804]
[1633114405456,0.07689309,47726.0,47725.0,0.56735139]
[1633114406056,0.07689309,47726.0,47725.0,0.56788149]
[1633114406257,0.06228554,47726.0,47725.0,0.59115814]
[1633114407057,0.06228554,47726.0,47725.0,0.59062804]
[1633114407657,0.06228554,47726.0,47725.0,0.58934546]
[1633114410862,0.06228554,47726.0,47725.0,0.56606881]
[1633114411062,0.07689316,47726.0,47725.0,0.56606881]
[1633114411667,0.06228554,47726.0,47725.0,0.58934546]
[1633114414866,0.11587554,47726.0,47725.0,0.58934546]
[1633114416470,0.11587554,47726.0,47725.0,0.56606881]
[1633114416671,0.13048323,47726.0,47725.0,0.56606881]
[1633114416875,0.12001223,47726.0,47725.0,0.56606881]
[1633114417270,0.10540454,47726.0,47725.0,0.58934546]
[1633114417674,0.10540454,47726.0,47725.0,0.58434546]
[1633114418871,0.10540454,47726.0,47725.0,0.58555414]
[1633114419477,0.08806698,47726.0,47725.0,3.03608424]
[1633114419676,0.08806698,47726.0,47725.0,1.64896461]
[1633114419873,0.08806698,47726.0,47725.0,1.94334156]
[1633114421676,0.08806698,47726.0,47725.0,2.16654156]
[1633114421875,0.08806698,47726.0,47725.0,2.14326491]
[1633114422080,0.10267474,47726.0,47725.0,2.17326491]
[1633114422479,0.10267474,47726.0,47725.0,1.74336133]
[1633114422677,0.08806698,47726.0,47725.0,1.74336133]
[1633114422879,0.08806698,47726.0,47725.0,1.76663798]
[1633114423478,0.08806698,47726.0,47725.0,1.54290788]
[1633114423679,0.08806698,47726.0,47725.0,1.21853093]
[1633114423878,0.08806698,47726.0,47725.0,0.78239076]
[1633114424281,0.08806698,47726.0,47725.0,0.58555414]
[1633114427078,0.08806698,47726.0,47725.0,0.46283065]
[1633114427480,0.10267481,47726.0,47725.0,0.439554]
[1633114427679,0.10267481,47726.0,47725.0,0.44077295]
[1633114428279,0.08806698,47726.0,47725.0,0.5839314]
[1633114428878,0.08806698,47726.0,47725.0,0.58271245]
[1633114430281,0.08806698,47726.0,47725.0,0.89432523]
[1633114430482,0.08806698,47726.0,47725.0,0.58271245]
[1633114432883,0.08806698,47726.0,47725.0,0.5594358]
[1633114433082,0.09267487,47726.0,47725.0,0.5594358]
[1633114433682,0.07806698,47726.0,47725.0,0.58271245]
[1633114434482,0.07806698,47726.0,47725.0,0.92320445]
[1633114435087,0.07806698,47726.0,47725.0,0.92443747]
[1633114435284,0.07806698,47726.0,47725.0,0.92496757]
[1633114436286,0.07806698,47726.0,47725.0,1.35110774]
[1633114438390,0.07806698,47726.0,47725.0,1.32783109]
[1633114438588,0.09267494,47726.0,47725.0,1.32783109]
[1633114438789,0.09267494,47726.0,47725.0,1.42352208]
[1633114439189,0.07806698,47726.0,47725.0,1.81245406]
[1633114439389,0.07806698,47726.0,47725.0,2.14565406]
[1633114440388,0.07806698,47726.0,47725.0,1.77999873]
[1633114441590,0.07806698,47726.0,47725.0,2.17674335]
[1633114442390,0.07806698,47726.0,47725.0,1.95354335]
[1633114443993,0.09267501,47726.0,47725.0,1.72334269]
[1633114444193,0.09267501,47726.0,47725.0,1.32606797]
[1633114444792,0.07806698,47726.0,47725.0,1.34934462]
[1633114445593,0.07806698,47726.0,47725.0,1.22946282]
[1633114446193,0.07806698,47726.0,47725.0,1.43492357]
[1633114446592,0.07806698,47726.0,47725.0,1.5299928]
[1633114448996,0.07806698,47726.0,47725.0,1.5305229]
[1633114449399,0.07806698,47726.0,47725.0,1.53180603]
[1633114450399,0.07806698,47726.0,47725.0,2.2767553]
[1633114450799,0.09267508,47726.0,47725.0,2.25347865]
[1633114451055,0.09267508,47726.0,47725.0,2.35021009]
[1633114452255,0.09267508,47726.0,47725.0,2.00199681]
[1633114455662,0.07806698,47726.0,47725.0,2.00199681]
[1633114455864,0.07806698,47726.0,47725.0,2.02527346]
[1633114456060,0.07806698,47726.0,47725.0,2.13527346]
[1633114456263,0.07806698,47726.0,47725.0,2.1318598]
[1633114458476,0.07806698,47726.0,47725.0,2.6318598]
[1633114459276,0.07806698,47726.0,47725.0,2.1318598]
[1633114460275,0.09267521,47726.0,47725.0,2.10858315]
[1633114461278,0.07806698,47726.0,47725.0,2.1318598]
[1633114463080,0.0002,47734.0,47726.0,1.95]
[1633114463382,0.0002,47734.0,47733.0,0.00120894]
[1633114463584,0.0002,47734.0,47733.0,0.80685798]
[1633114463780,0.00040351,47734.0,47733.0,1.23352825]
[1633114465579,0.00040351,47734.0,47733.0,1.62765591]
[1633114465780,0.01504154,47734.0,47733.0,1.62765591]
[1633114465982,0.06863154,47734.0,47733.0,1.62765591]
[1633114466783,0.05399351,47734.0,47733.0,1.65089649]
[1633114471186,0.05399351,47734.0,47733.0,1.62765591]
[1633114471391,0.06863161,47734.0,47733.0,1.62765591]
[1633114471987,0.06863161,47734.0,47733.0,1.22335377]
[1633114472190,0.05399351,47734.0,47733.0,1.22335377]
[1633114472388,0.05399351,47734.0,47733.0,1.24659435]
[1633114472788,0.05399351,47734.0,47733.0,1.27606425]
[1633114472988,0.05399351,47734.0,47733.0,0.88193659]
[1633114474392,0.05399351,47734.0,47733.0,0.88246669]
[1633114475190,0.05399351,47734.0,47733.0,0.88193659]
[1633114475592,0.05399351,47734.0,47733.0,0.88246669]
[1633114475792,0.05399351,47734.0,47733.0,0.45458748]
[1633114475793,0.05527488,47734.0,47733.0,0.45458748]
[1633114476193,0.05527488,47734.0,47733.0,0.55458748]
[1633114476393,0.05399351,47734.0,47733.0,0.38772258]
[1633114476596,0.05399351,47734.0,47733.0,0.72815758]
[1633114476796,0.06863168,47734.0,47733.0,0.704917]
[1633114476998,0.06863168,47734.0,47733.0,0.935517]
[1633114477796,0.05399351,47734.0,47733.0,0.96004396]
[1633114477996,0.05399351,47734.0,47733.0,1.10522119]
[1633114478998,0.05399351,47734.0,47733.0,1.52975482]
[1633114480199,0.05399351,47734.0,47733.0,1.52922472]
[1633114481197,0.00040351,47734.0,47733.0,1.52975482]
[1633114481398,0.05399351,47734.0,47733.0,1.52975482]
[1633114481596,0.05399351,47734.0,47733.0,1.52922472]
[1633114481997,0.05399351,47734.0,47733.0,1.51902472]
[1633114482196,0.05399351,47734.0,47733.0,1.49578414]
[1633114482398,0.06863174,47734.0,47733.0,1.49578414]
[1633114483198,0.05399351,47734.0,47733.0,1.49578414]
[1633114483400,0.05399351,47734.0,47733.0,1.51902472]
[1633114484799,0.05399351,47734.0,47733.0,1.51955482]
[1633114484999,0.05399351,47734.0,47733.0,1.51902472]
[1633114486000,0.05399351,47734.0,47733.0,1.37384749]
[1633114486799,0.00040351,47734.0,47733.0,1.37384749]
[1633114487062,0.05399351,47734.0,47733.0,1.37384749]
[1633114487659,0.05399351,47734.0,47733.0,1.73914006]
[1633114487859,0.06863181,47734.0,47733.0,1.71536938]
[1633114488259,0.06863181,47734.0,47733.0,1.71036938]
[1633114488861,0.05399351,47734.0,47733.0,1.73360996]
[1633114489059,0.05399351,47734.0,47733.0,1.73414006]
[1633114489262,0.05399351,47734.0,47733.0,1.73360996]
[1633114490063,0.05399351,47734.0,47733.0,1.73414006]
[1633114490262,0.04899351,47734.0,47733.0,1.73414006]
[1633114490463,0.0002,47735.0,47733.0,1.73414006]
[1633114490664,0.0002,47735.0,47734.0,0.56592238]
[1633114490863,0.0002,47735.0,47734.0,0.58485248]
[1633114491663,0.0002,47735.0,47734.0,0.68485248]
[1633114492267,0.0002,47735.0,47734.0,0.67985248]
[1633114492463,0.0002,47735.0,47734.0,0.67932238]
[1633114493064,0.0002,47735.0,47734.0,0.67985248]
[1633114493263,0.01484209,47735.0,47734.0,0.67985248]
[1633114494064,0.01484209,47735.0,47734.0,0.3350121]
[1633114494263,0.0002,47735.0,47734.0,0.3350121]
[1633114494464,0.0002,47735.0,47734.0,0.35824817]
[1633114497667,0.0002,47735.0,47734.0,0.35771807]
[1633114498672,0.0002,47735.0,47734.0,0.334482]
[1633114498873,0.01484216,47735.0,47734.0,0.334482]
[1633114499072,0.01241199,47735.0,47734.0,0.334482]
[1633114499277,0.01341199,47735.0,47734.0,0.3350121]
[1633114500077,0.001,47735.0,47734.0,0.35936325]
[1633114500276,0.001,47735.0,47734.0,0.35883315]
[1633114500674,0.001,47735.0,47734.0,0.45238977]
[1633114502278,0.001,47735.0,47734.0,0.87668911]
[1633114502478,0.001,47735.0,47734.0,0.87721921]
[1633114503675,0.001,47735.0,47734.0,0.87668911]
[1633114504277,0.001,47735.0,47734.0,0.85286806]
[1633114504478,0.01452714,47735.0,47734.0,1.15400217]
[1633114504878,0.01452714,47735.0,47734.0,1.15524976]
[1633114505285,0.01452714,47735.0,47734.0,0.85411565]
[1633114505679,0.001,47735.0,47734.0,0.8784668]
[1633114506280,0.001,47735.0,47734.0,0.5918668]
[1633114507480,0.001,47735.0,47734.0,0.5913367]
[1633114507682,0.001,47735.0,47734.0,0.5918668]
[1633114508683,0.001,47735.0,47734.0,0.73873561]
[1633114508881,0.001,47735.0,47734.0,0.71313687]
[1633114509080,0.0145272,47735.0,47734.0,0.71313687]
[1633114509282,0.0145272,47735.0,47734.0,0.71353066]
[1633114509682,0.0145272,47735.0,47734.0,1.06189733]
[1633114510284,0.0145272,47735.0,47734.0,1.06312993]
[1633114511083,0.001,47735.0,47734.0,1.08748108]
[1633114511285,0.0002,47736.0,47735.0,2.45]
[1633114511484,0.0004,47739.0,47735.0,0.23576276]
[1633114511683,0.0004,47739.0,47737.0,0.216061]
[1633114511884,0.0004,47739.0,47737.0,0.69172064]
[1633114512084,0.0004,47739.0,47737.0,1.11655008]
[1633114512285,0.0004,47739.0,47737.0,1.11776465]
[1633114514085,0.0004,47739.0,47737.0,1.11655008]
[1633114514687,0.01373841,47738.0,47737.0,1.11694387]
[1633114515088,0.01373841,47738.0,47737.0,1.11641377]
[1633114515887,0.01373841,47738.0,47737.0,0.75915413]
[1633114516691,0.01373841,47738.0,47737.0,1.12384949]
[1633114517093,0.0002,47738.0,47737.0,1.14818712]
[1633114517693,0.0002,47738.0,47737.0,0.78349176]
[1633114517892,0.0002,47738.0,47737.0,1.13234229]
[1633114518297,0.0002,47738.0,47737.0,1.36347239]
[1633114518494,0.0002,47738.0,47737.0,1.01462186]
[1633114519094,0.0002,47738.0,47737.0,1.20041025]
[1633114520096,0.01373848,47738.0,47737.0,1.17607262]
[1633114520300,0.01373848,47738.0,47737.0,1.5218726]
[1633114520698,0.0004,47739.0,47738.0,0.01626152]
[1633114520899,0.0004,47739.0,47738.0,0.25072252]
[1633114521096,0.0004,47739.0,47738.0,0.25125262]
[1633114521295,0.0004,47739.0,47738.0,0.36164641]
[1633114521695,0.0004,47739.0,47738.0,0.70581454]
[1633114521896,0.0004,47739.0,47738.0,0.36164641]
[1633114522497,0.0004,47739.0,47738.0,0.46111631]
[1633114522699,0.0004,47739.0,47738.0,0.49222092]
[1633114524499,0.0004,47739.0,47738.0,0.49275102]
[1633114525103,0.0004,47739.0,47738.0,0.49222092]
[1633114525701,0.0004,47739.0,47738.0,0.46111631]
[1633114526108,0.0004,47739.0,47738.0,0.88541565]
[1633114528105,0.0004,47739.0,47738.0,0.91652026]
[1633114528505,0.0004,47739.0,47738.0,0.91705036]
[1633114528966,0.0004,47739.0,47738.0,1.26911408]
[1633114530305,0.0004,47739.0,47738.0,0.91705036]
[1633114530506,0.0004,47739.0,47738.0,1.26238852]
[1633114531310,0.0004,47739.0,47738.0,1.23128391]
[1633114531506,0.0004,47739.0,47738.0,0.88594575]
[1633114532308,0.0004,47739.0,47738.0,1.22850655]
[1633114532706,0.0004,47739.0,47738.0,0.88594575]
[1633114533108,0.0004,47739.0,47738.0,0.88541565]
[1633114533707,0.0004,47739.0,47738.0,0.91652026]
[1633114534710,0.23152404,47739.0,47738.0,0.49222092]
[1633114535109,1.68152404,47739.0,47738.0,0.25775992]
[1633114535310,0.23152404,47739.0,47738.0,0.25775992]
[1633114536710,0.23152404,47739.0,47738.0,0.22665531]
[1633114539112,0.23152404,47739.0,47738.0,0.25775992]
[1633114539513,0.78455879,47739.0,47738.0,0.25775992]
[1633114539711,1.00061979,47739.0,47738.0,0.25775992]
[1633114539912,2.45,47738.0,47736.0,0.002539]
[1633114540111,0.4209986,47737.0,47736.0,0.002539]
[1633114540713,0.4209986,47737.0,47720.0,0.0184]
[1633114540981,0.23992241,47721.0,47720.0,0.332554]
[1633114541111,0.23992241,47721.0,47720.0,0.548615]
[1633114541311,0.60561432,47721.0,47720.0,0.2346047]
[1633114541510,0.60561432,47721.0,47720.0,0.0185437]
[1633114541911,0.60561432,47721.0,47720.0,0.0985437]
[1633114542112,0.59684311,47721.0,47720.0,0.0985437]
[1633114542512,0.61910176,47721.0,47720.0,0.0985437]
[1633114543515,2.4684,47720.0,47716.0,0.314182]
[1633114543716,2.4684,47720.0,47702.0,0.03934591]
[1633114543717,2.45129317,47717.0,47702.0,0.03934591]
[1633114543982,0.00127077,47703.0,47702.0,0.03934591]
[1633114544114,0.00127077,47703.0,47702.0,0.25540691]
[1633114544319,0.00127077,47703.0,47702.0,0.23467662]
[1633114544515,0.16334077,47703.0,47702.0,0.01861562]
[1633114544716,0.96744956,47703.0,47702.0,0.03432808]
[1633114544913,0.96744956,47703.0,47702.0,0.13432808]
[1633114545113,0.59346988,47703.0,47702.0,0.13432808]
[1633114545315,0.16334077,47703.0,47702.0,0.13432808]
[1633114545714,0.00127077,47703.0,47702.0,0.13432808]
[1633114546516,0.00120369,47708.0,47702.0,0.13432808]
[1633114546979,0.00120369,47708.0,47707.0,0.00015571]
[1633114547917,0.024705,47708.0,47707.0,0.00015571]
[1633114548915,0.024705,47708.0,47707.0,0.10015571]
[1633114549314,0.02350131,47708.0,47707.0,0.10015571]
[1633114549915,0.02350131,47708.0,47707.0,0.31621671]
[1633114550120,0.00127482,47715.0,47707.0,0.31621671]
[1633114550319,0.0012948,47713.0,47707.0,0.11855571]
[1633114550516,0.0012948,47713.0,47708.0,0.31422]
[1633114550718,0.0012948,47713.0,47708.0,0.33262]
[1633114550919,0.00128275,47709.0,47708.0,0.0184]
[1633114551117,0.00128275,47709.0,47708.0,0.1184]
[1633114551318,0.00128581,47709.0,47708.0,0.11854373]
[1633114553515,0.02349998,47709.0,47708.0,0.11854373]
[1633114554317,0.02221417,47709.0,47708.0,0.11854373]
[1633114554720,1.27221417,47709.0,47708.0,0.01854373]
[1633114554917,0.02221417,47709.0,47708.0,0.01854373]
[1633114555716,0.00127482,47715.0,47708.0,0.03422911]
[1633114555917,0.00127482,47715.0,47708.0,0.01582911]
[1633114556121,0.00127482,47715.0,47714.0,7.185e-05]
[1633114556320,0.18288792,47715.0,47714.0,7.185e-05]
[1633114557518,0.39894892,47715.0,47714.0,7.185e-05]
[1633114557920,0.21733582,47715.0,47714.0,7.185e-05]
[1633114558522,0.00127482,47715.0,47714.0,7.185e-05]
[1633114558919,0.02351137,47715.0,47714.0,7.185e-05]
[1633114560722,0.23957237,47715.0,47714.0,7.185e-05]
[1633114561121,0.21733582,47715.0,47714.0,0.01573015]
[1633114564327,0.21733582,47715.0,47714.0,7.185e-05]
[1633114564528,0.23957243,47715.0,47714.0,7.185e-05]
[1633114564730,0.02351143,47715.0,47714.0,7.185e-05]
[1633114564991,0.02223661,47715.0,47714.0,7.185e-05]
[1633114565528,0.23829761,47715.0,47714.0,7.185e-05]
[1633114566529,0.216061,47715.0,47714.0,7.185e-05]
[1633114566729,0.216061,47715.0,47714.0,0.01573015]
[1633114567131,0.216061,47715.0,47714.0,0.12573015]
[1633114567531,0.4899839,47715.0,47714.0,0.12573015]
[1633114568935,0.216061,47715.0,47714.0,0.12573015]
[1633114569746,0.216061,47715.0,47714.0,0.11007185]
[1633114569937,0.23829768,47715.0,47714.0,0.11007185]
[1633114570138,0.16338834,47713.0,47701.0,0.0184]
[1633114570350,0.00123612,47702.0,47698.0,0.0875]
[1633114570537,0.00128861,47699.0,47698.0,0.0875]
[1633114571536,0.00128764,47707.0,47698.0,0.0875]
[1633114571739,0.2261662,47701.0,47698.0,0.0875]
[1633114572137,0.2261662,47701.0,47699.0,0.01571246]
[1633114573337,0.314351,47700.0,47699.0,0.01571246]
[1633114573540,0.530412,47700.0,47699.0,0.01571246]
[1633114573738,0.530412,47700.0,47699.0,0.01589216]
[1633114574538,0.314351,47700.0,47699.0,0.01589216]
[1633114575338,0.33653196,47700.0,47699.0,0.0001797]
[1633114575942,0.55259296,47700.0,47699.0,0.0001797]
[1633114576840,0.23824196,47700.0,47699.0,0.0001797]
[1633114577039,0.02218096,47700.0,47699.0,0.0001797]
[1633114577641,0.0012091,47706.0,47699.0,0.01590571]
[1633114577840,0.216061,47705.0,47699.0,0.01590571]
[1633114578039,0.216061,47705.0,47699.0,0.01572601]
[1633114578242,0.2137466,47701.0,47699.0,0.01572601]
[1633114578641,0.2137466,47701.0,47700.0,0.00016772]
[1633114581044,0.20228342,47701.0,47700.0,0.00016772]
[1633114581645,0.41834442,47701.0,47700.0,0.00016772]
[1633114583045,0.41834442,47701.0,47700.0,0.01589147]
[1633114585047,0.73269642,47701.0,47700.0,0.01589147]
[1633114585650,0.41834442,47701.0,47700.0,0.01589147]
[1633114586250,0.20228342,47701.0,47700.0,0.00016772]
[1633114587651,0.41834442,47701.0,47700.0,0.00016772]
[1633114588656,0.41834442,47701.0,47700.0,0.01589147]
[1633114588853,0.41591271,47701.0,47700.0,0.01589147]
[1633114591709,0.41591271,47701.0,47700.0,0.00016772]
[1633114594114,0.41591271,47701.0,47700.0,0.01589147]
[1633114596112,0.419144,47705.0,47700.0,0.01589147]
[1633114596113,0.209568,47705.0,47700.0,0.01589147]
[1633114596517,0.209568,47705.0,47704.0,0.00011979]
[1633114596714,3.189953,47705.0,47704.0,0.00011979]
[1633114597313,3.40729117,47705.0,47704.0,0.00011979]
[1633114597513,0.979491,47705.0,47704.0,0.00011979]
[1633114599515,0.95729117,47705.0,47704.0,0.00011979]
[1633114599715,0.95729117,47705.0,47704.0,0.01582322]
[1633114602116,0.95485961,47705.0,47704.0,0.01582322]
[1633114602917,0.97705951,47705.0,47704.0,0.00011979]
[1633114605119,0.95485961,47705.0,47704.0,0.01582322]
[1633114606119,0.72059661,47705.0,47704.0,0.01582322]
[1633114608328,0.72059661,47705.0,47704.0,0.00011979]
[1633114608528,0.74279658,47705.0,47704.0,0.00011979]
[1633114610532,0.72059661,47705.0,47704.0,0.00011979]
[1633114610733,0.72059661,47705.0,47704.0,0.01582322]
[1633114613937,0.74279665,47705.0,47704.0,0.00011979]
[1633114614340,0.53322865,47705.0,47704.0,0.00011979]
[1633114614543,0.02220004,47705.0,47704.0,0.00137307]
[1633114614748,0.00222004,47705.0,47704.0,0.01977307]
[1633114614941,0.00222004,47705.0,47704.0,0.41977307]
[1633114615141,0.209577,47712.0,47704.0,0.01977307]
[1633114615344,2.24068834,47713.0,47711.0,0.00126348]
[1633114615546,2.24068834,47713.0,47712.0,0.0184]
[1633114615745,0.16338834,47713.0,47712.0,0.0184]
[1633114616341,0.16338834,47713.0,47712.0,0.04516735]
[1633114618342,0.16338834,47713.0,47712.0,0.3858256]
[1633114618544,0.16338834,47713.0,47712.0,0.04516735]
[1633114619344,0.17451818,47713.0,47712.0,0.0184]
[1633114621346,0.17451818,47713.0,47712.0,0.93137637]
[1633114621545,0.16338834,47713.0,47712.0,1.14753837]
[1633114621744,0.16338834,47713.0,47712.0,1.17430572]
[1633114621943,0.16338834,47713.0,47712.0,1.17483582]
[1633114622146,0.16338834,47713.0,47712.0,1.17430572]
[1633114622744,0.00336834,47713.0,47712.0,1.17430572]
[1633114623146,0.00336834,47713.0,47712.0,1.28430572]
[1633114624549,0.00336834,47713.0,47712.0,1.38430572]
[1633114624947,0.00336834,47713.0,47712.0,1.35806847]
[1633114625152,0.01449825,47713.0,47712.0,1.35806847]
[1633114627150,0.00336834,47713.0,47712.0,1.38483582]